fUST/lending_fUST_20240611
["ID","MTS","AMOUNT","RATE_DAILY","PERIOD"]
[328995201,1718049045283,-153.0,0.00020055,2]
[328995202,1718049045294,-427.74037649,0.00020273,2]
[328995203,1718049045306,-500.0,0.00020273,2]
[328995204,1718049045317,-521.35,0.00020273,2]
[328995205,1718049045329,-642.85097417,0.00020273,2]
[328995206,1718049045340,-500.0,0.00020273,2]
[328995207,1718049045351,-500.0,0.00020273,2]
[328995208,1718049045362,-500.0,0.00020273,2]
[328995211,1718049045527,-500.0,0.00020273,2]
[328995212,1718049045538,-559.34,0.00020273,2]
[328995213,1718049045548,-392.14,0.00020273,2]
[328995214,1718049045560,-518.24,0.00020273,2]
[328995215,1718049045570,-587.88,0.00020273,2]
[328995216,1718049045580,-500.0,0.00020273,2]
[328995217,1718049045590,-526.88,0.00020273,2]
[328995218,1718049045600,-500.0,0.00020273,2]
[328995219,1718049045611,-936.02,0.00020273,2]
[328995220,1718049045621,-1708.98,0.00020273,2]
[328995221,1718049045633,-500.0,0.00020273,2]
[328995222,1718049045643,-645.48,0.00020273,2]
[328995223,1718049045654,-500.0,0.00020273,2]
[328995224,1718049045664,-500.0,0.00020273,2]
[328995225,1718049045674,-500.0,0.00020273,2]
[328995226,1718049045684,-500.0,0.00020273,2]
[328995227,1718049045694,-2150.46,0.00020273,2]
[328995228,1718049045704,-500.0,0.00020273,2]
[328995229,1718049045714,-500.0,0.00020273,2]
[328995230,1718049045724,-500.0,0.00020273,2]
[328995231,1718049045734,-500.0,0.00020273,2]
[328995232,1718049045745,-2100.11501282,0.00020273,2]
[328995233,1718049046229,-500.0,0.00019178,2]
[328995235,1718049046241,-3025.27498718,0.00020273,2]
[328995237,1718049046251,-500.0,0.00020273,2]
[328995239,1718049046261,-1749.38,0.00020273,2]
[328995240,1718049046271,-500.0,0.00020273,2]
[328995242,1718049046281,-1045.12,0.00020273,2]
[328995244,1718049046291,-550.66,0.00020273,2]
[328995245,1718049046302,-1031.61,0.00020273,2]
[328995246,1718049046313,-500.0,0.00020273,2]
[328995247,1718049046322,-170.6,0.00020273,2]
[328995248,1718049046332,-500.0,0.00020273,2]
[328995249,1718049046342,-2139.61108285,0.00020273,2]
[328995250,1718049046511,-160.57891715,0.00020273,2]
[328995251,1718049046523,-500.0,0.00020273,2]
[328995252,1718049046533,-500.0,0.00020273,2]
[328995253,1718049046542,-500.0,0.00020273,2]
[328995254,1718049046552,-500.0,0.00020273,2]
[328995255,1718049046564,-500.0,0.00020273,2]
[328995256,1718049046574,-645.0,0.00020273,2]
[328995257,1718049046584,-500.0,0.00020273,2]
[328995258,1718049046594,-500.0,0.00020273,2]
[328995259,1718049046605,-500.0,0.00020273,2]
[328995260,1718049046615,-1077.1,0.00020273,2]
[328995261,1718049046625,-500.0,0.00020273,2]
[328995262,1718049046636,-500.0,0.00020273,2]
[328995263,1718049046646,-843.84,0.00020273,2]
[328995264,1718049046656,-4239.03743968,0.00020295,2]
[328995265,1718049046666,-927.52136941,0.00020447,3]
[328995266,1718049046678,-6199.83529729,0.00020447,3]
[328995267,1718049046690,-451.51601229,0.00020447,3]
[328995268,1718049046703,-545.89534636,0.00020447,3]
[328995269,1718049046715,-2332.20307556,0.00020447,3]
[328995271,1718049048947,-569.95969663,0.00019178,2]
[328995272,1718049048957,-23747.43461888,0.00020447,3]
[328995273,1718049048970,-13269.42347315,0.00020447,3]
[328995275,1718049185237,155.00930056,9.999e-05,2]
[328995276,1718049205203,1748.19479426,0.00015,2]
[328995279,1718049213609,155.00930056,9.999e-05,2]
[328995383,1718050229877,282.49542241,9.999e-05,2]
[328995455,1718050232966,-300.0,0.00018158,2]
[328995457,1718050232977,-300.0,0.00018158,2]
[328995459,1718050232987,-24900.0,0.00018159,2]
[328995461,1718050232998,-1453.10707837,0.000189,2]
[328995463,1718050233009,-409.03429826,0.00019078,2]
[328995465,1718050233019,-3120.09651569,0.00019172,4]
[328995467,1718050233030,-1058.866801,0.00019175,2]
[328995469,1718050233041,-1444.57547444,0.00019176,2]
[328995471,1718050233051,-285.73167299,0.00019176,2]
[328995473,1718050233061,-261.84381039,0.00019176,2]
[328995475,1718050233072,-156.78709048,0.00019176,2]
[328995477,1718050233082,-1897.51294574,0.00019176,2]
[328995479,1718050233094,-164.59629886,0.00019176,2]
[328995481,1718050233104,-309.85124129,0.00019176,2]
[328995483,1718050233115,-2682.36568579,0.00019176,2]
[328995485,1718050233133,-309.86673354,0.00019176,2]
[328995487,1718050233147,-1983.20300641,0.00019176,2]
[328995489,1718050233158,-606.49853317,0.00019176,2]
[328995491,1718050233169,-200.09446098,0.00019176,2]
[328995492,1718050233178,-9061.08852678,0.00019176,2]
[328995496,1718050233206,-364.703,0.00019176,2]
[328995499,1718050233218,-1062.75965882,0.00019176,2]
[328995502,1718050233229,-2223.42597795,0.00019177,2]
[328995505,1718050233239,-500.0,0.00019178,2]
[328995507,1718050233249,-500.0,0.00019178,2]
[328995509,1718050233258,-500.0,0.00019178,2]
[328995511,1718050233268,-500.0,0.00019178,2]
[328995513,1718050233277,-500.0,0.00019178,2]
[328995515,1718050233287,-500.0,0.00019178,2]
[328995517,1718050233297,-500.0,0.00019178,2]
[328995519,1718050233306,-500.0,0.00019178,2]
[328995521,1718050233316,-500.0,0.00019178,2]
[328995523,1718050233327,-69.2881674,0.00019178,2]
[328995525,1718050233340,-473.56814125,0.00019178,2]
[328995527,1718050233350,-500.0,0.00019178,2]
[328995529,1718050233360,-500.0,0.00019178,2]
[328995531,1718050233371,-500.0,0.00019178,2]
[328995533,1718050233380,-500.0,0.00019178,2]
[328995535,1718050233393,-521.85317343,0.00019178,2]
[328995537,1718050233403,-500.0,0.00019178,2]
[328995539,1718050233413,-500.0,0.00019178,2]
[328995541,1718050233423,-500.0,0.00019178,2]
[328995543,1718050233433,-500.0,0.00019178,2]
[328995545,1718050233443,-500.0,0.00019178,2]
[328995547,1718050233452,-500.0,0.00019178,2]
[328995549,1718050233461,-500.0,0.00019178,2]
[328995551,1718050233471,-500.0,0.00019178,2]
[328995554,1718050233482,-500.0,0.00019178,2]
[328995555,1718050233492,-427.74037649,0.00019178,2]
[328995557,1718050233505,-500.0,0.00019178,2]
[328995560,1718050233515,-500.0,0.00019178,2]
[328995561,1718050233525,-186.91255128,0.00019178,2]
[328995563,1718050233536,-500.0,0.00019178,2]
[328995566,1718050233546,-500.0,0.00019178,2]
[328995568,1718050233559,-500.0,0.00019178,2]
[328995570,1718050233571,-500.0,0.00019178,2]
[328995572,1718050233584,-500.0,0.00019178,2]
[328995575,1718050233597,-562.0738896,0.00019178,2]
[328995577,1718050233610,-500.0,0.00019178,2]
[328995579,1718050233623,-500.0,0.00019178,2]
[328995581,1718050233635,-500.0,0.00019178,2]
[328995583,1718050233648,-500.0,0.00019178,2]
[328995585,1718050233658,-500.0,0.00019178,2]
[328995587,1718050233669,-500.0,0.00019178,2]
[328995590,1718050233682,-630.09128489,0.00019178,2]
[328995592,1718050233693,-500.0,0.00019178,2]
[328995594,1718050233704,-500.0,0.00019178,2]
[328995596,1718050233716,-500.0,0.00019178,2]
[328995599,1718050233727,-649.60636776,0.00019178,2]
[328995601,1718050233740,-500.0,0.00019178,2]
[328995603,1718050233752,-18.2413803,0.00019178,2]
[328996305,1718050241377,-968.73805225,0.000189,2]
[328996308,1718050241390,-121.21793546,0.00019177,2]
[328996327,1718050241574,-368.4607429,0.00019177,2]
[328996329,1718050241587,-481.7586197,0.00019178,2]
[328996331,1718050241599,-482.52755583,0.00019178,2]
[328996333,1718050241610,-505.0845965,0.00019178,2]
[328996335,1718050241622,-171.3344735,0.00019178,2]
[328996337,1718050241636,-328.6655265,0.00019178,2]
[328996340,1718050241649,-500.0,0.00019178,2]
[328996341,1718050241659,-500.0,0.00019178,2]
[328996344,1718050241672,-378.7385733,0.00019178,2]
[328996621,1718050244028,-121.2614267,0.00019178,2]
[328996623,1718050244047,-500.0,0.00019178,2]
[328996624,1718050244060,-500.0,0.00019178,2]
[328996626,1718050244071,-500.0,0.00019178,2]
[328996628,1718050244083,-500.0,0.00019178,2]
[328996630,1718050244094,-520.42577352,0.00019178,2]
[328996632,1718050244106,-500.0,0.00019178,2]
[328996634,1718050244117,-500.0,0.00019178,2]
[328996637,1718050244129,-500.0,0.00019178,2]
[328996639,1718050244147,-500.0,0.00019178,2]
[328996642,1718050244161,-500.0,0.00019178,2]
[328996644,1718050244172,-500.0,0.00019178,2]
[328996645,1718050244184,-500.0,0.00019178,2]
[328996648,1718050244197,-500.0,0.00019178,2]
[328996650,1718050244224,-500.0,0.00019178,2]
[328996652,1718050244239,-304.16018197,0.00019178,2]
[328996654,1718050244251,-500.0,0.00019178,2]
[328996656,1718050244265,-722.62,0.00019178,2]
[328996658,1718050244277,-500.0,0.00019178,2]
[328996660,1718050244299,-500.0,0.00019178,2]
[328996662,1718050244319,-500.0,0.00019178,2]
[328996664,1718050244331,-500.0,0.00019178,2]
[328996667,1718050244343,-500.0,0.00019178,2]
[328996669,1718050244354,-570.17,0.00019178,2]
[328996671,1718050244366,-500.0,0.00019178,2]
[328996673,1718050244378,-500.0,0.00019178,2]
[328996675,1718050244389,-638.35571564,0.00019178,2]
[328996677,1718050244404,-500.0,0.00019178,2]
[328996679,1718050244415,-558.71,0.00019178,2]
[328996681,1718050244431,-500.0,0.00019178,2]
[328996684,1718050244442,-170.02,0.00019178,2]
[328996686,1718050244454,-500.0,0.00019178,2]
[328996688,1718050244466,-500.0,0.00019178,2]
[328996689,1718050244480,-500.0,0.00019178,2]
[328996692,1718050244495,-500.0,0.00019178,2]
[328996694,1718050244510,-500.0,0.00019178,2]
[328996695,1718050244521,-1066.35,0.00019178,2]
[328996697,1718050244533,-500.0,0.00019178,2]
[328996699,1718050244545,-510.63935521,0.00019178,2]
[328996701,1718050244557,-500.0,0.00019178,2]
[328996703,1718050244569,-860.06,0.00019178,2]
[328996706,1718050244588,-709.29,0.00019178,2]
[328996709,1718050244612,-500.0,0.00019178,2]
[328996711,1718050244628,-500.0,0.00019178,2]
[328996713,1718050244646,-500.0,0.00019178,2]
[328996715,1718050244662,-500.0,0.00019178,2]
[328996717,1718050244680,-500.0,0.00019178,2]
[328996719,1718050244697,-299.71,0.00019178,2]
[328996722,1718050244718,-500.0,0.00019178,2]
[328996724,1718050244738,-500.0,0.00019178,2]
[328996726,1718050244753,-500.0,0.00019178,2]
[328996727,1718050244766,-500.0,0.00019178,2]
[328996728,1718050244778,-500.0,0.00019178,2]
[328996729,1718050244790,-500.0,0.00019178,2]
[328996730,1718050244802,-500.0,0.00019178,2]
[328996731,1718050244813,-516.72,0.00019178,2]
[328996732,1718050244825,-500.0,0.00019178,2]
[328996733,1718050244837,-500.0,0.00019178,2]
[328996734,1718050244848,-546.99,0.00019178,2]
[328996735,1718050244859,-1112.06,0.00019178,2]
[328996738,1718050244874,-500.0,0.00019178,2]
[328996741,1718050244904,-557.46,0.00019178,2]
[328996743,1718050244915,-1687.95,0.00019178,2]
[328996745,1718050244926,-500.0,0.00019178,2]
[328996747,1718050244939,-500.0,0.00019178,2]
[328996749,1718050244949,-500.0,0.00019178,2]
[328996752,1718050244961,-500.0,0.00019178,2]
[328996754,1718050244972,-500.0,0.00019178,2]
[328996756,1718050244985,-500.0,0.00019178,2]
[328996758,1718050244997,-500.0,0.00019178,2]
[328996774,1718050245170,-500.0,0.00019178,2]
[328996776,1718050245190,-500.0,0.00019178,2]
[328996778,1718050245203,-500.0,0.00019178,2]
[328996780,1718050245214,-510.05180134,0.00019178,2]
[328996782,1718050245225,-500.0,0.00019178,2]
[328996784,1718050245235,-500.0,0.00019178,2]
[328996786,1718050245245,-500.0,0.00019178,2]
[328996788,1718050245255,-5416.1,0.00019178,2]
[328996790,1718050245266,-500.0,0.00019178,2]
[328996792,1718050245276,-500.0,0.00019178,2]
[328996794,1718050245286,-500.0,0.00019178,2]
[328996796,1718050245296,-500.0,0.00019178,2]
[328996798,1718050245306,-500.0,0.00019178,2]
[328996800,1718050245316,-1751.74,0.00019178,2]
[328996802,1718050245327,-633.35,0.00019178,2]
[328996804,1718050245337,-500.0,0.00019178,2]
[328996805,1718050245349,-500.0,0.00019178,2]
[328996807,1718050245365,-500.0,0.00019178,2]
[328996809,1718050245377,-500.0,0.00019178,2]
[328996811,1718050245388,-1080.13,0.00019178,2]
[328996813,1718050245404,-500.0,0.00019178,2]
[328996815,1718050245420,-502.77358706,0.00019178,2]
[328996817,1718050245434,-500.0,0.00019178,2]
[328996819,1718050245444,-186.53543359,0.00019178,2]
[328996821,1718050245459,-500.0,0.00019178,2]
[328996823,1718050245469,-500.0,0.00019178,2]
[328996825,1718050245479,-987.31,0.00019178,2]
[328996827,1718050245488,-1009.99246313,0.00019178,2]
[328996829,1718050245498,-500.0,0.00019178,2]
[328996831,1718050245510,-500.0,0.00019178,2]
[328996833,1718050245523,-500.0,0.00019178,2]
[328996835,1718050245533,-2304.66,0.00019178,2]
[328996837,1718050245543,-500.0,0.00019178,2]
[328996839,1718050245552,-500.0,0.00019178,2]
[328996841,1718050245563,-500.0,0.00019178,2]
[328996843,1718050245573,-571.67,0.00019178,2]
[328996845,1718050245583,-500.0,0.00019178,2]
[328996847,1718050245592,-2114.92,0.00019178,2]
[328996849,1718050245604,-500.0,0.00019178,2]
[328996851,1718050245614,-500.0,0.00019178,2]
[328996853,1718050245623,-500.0,0.00019178,2]
[328996855,1718050245633,-500.0,0.00019178,2]
[328996857,1718050245643,-500.0,0.00019178,2]
[328996859,1718050245654,-500.0,0.00019178,2]
[328996861,1718050245664,-500.0,0.00019178,2]
[328996863,1718050245673,-500.0,0.00019178,2]
[328996865,1718050245685,-500.0,0.00019178,2]
[328996867,1718050245694,-500.0,0.00019178,2]
[328996869,1718050245704,-500.0,0.00019178,2]
[328996871,1718050245714,-627.72,0.00019178,2]
[328996873,1718050245723,-500.0,0.00019452,2]
[328996875,1718050245734,-500.0,0.00019452,2]
[328996877,1718050245743,-500.0,0.00019452,2]
[328996879,1718050245753,-646.23278944,0.00019452,2]
[328996881,1718050245763,-642.85097417,0.00019452,2]
[328996883,1718050245772,-500.0,0.00019452,2]
[328996885,1718050245783,-500.0,0.00019452,2]
[328996887,1718050245792,-500.0,0.00019452,2]
[328996889,1718050245803,-500.0,0.00019452,2]
[328996891,1718050245813,-500.0,0.00019452,2]
[328996894,1718050245824,-500.0,0.00019452,2]
[328996896,1718050245833,-500.0,0.00019452,2]
[328996898,1718050245843,-308.76687264,0.00019452,2]
[328996900,1718050245858,-191.23312736,0.00019452,2]
[328996902,1718050245868,-500.0,0.00019452,2]
[328996904,1718050245878,-500.0,0.00019452,2]
[328996906,1718050245889,-500.0,0.00019452,2]
[328996908,1718050245903,-500.0,0.00019452,2]
[328996910,1718050245914,-500.0,0.00019452,2]
[328996912,1718050245927,-500.0,0.00019452,2]
[328996914,1718050245940,-500.0,0.00019452,2]
[328996916,1718050245953,-500.0,0.00019452,2]
[328996919,1718050245964,-500.0,0.00019452,2]
[328996921,1718050245975,-500.0,0.00019452,2]
[328996923,1718050245990,-500.0,0.00019452,2]
[328996925,1718050246002,-500.0,0.00019452,2]
[328996927,1718050246014,-500.0,0.00019452,2]
[328996929,1718050246025,-500.0,0.00019452,2]
[328996931,1718050246035,-722.62,0.00019452,2]
[328996933,1718050246045,-415.3669649,0.00019452,2]
[328996934,1718050246057,-500.0,0.00019452,2]
[328996936,1718050246067,-500.0,0.00019452,2]
[328996939,1718050246085,-500.0,0.00019452,2]
[328996941,1718050246096,-500.0,0.00019452,2]
[328996943,1718050246107,-500.0,0.00019452,2]
[328996945,1718050246117,-500.0,0.00019452,2]
[328996947,1718050246130,-1066.35,0.00019452,2]
[328996949,1718050246144,-500.0,0.00019452,2]
[328996951,1718050246170,-500.0,0.00019452,2]
[328996953,1718050246182,-860.06,0.00019452,2]
[328996955,1718050246193,-709.29,0.00019452,2]
[328996957,1718050246218,-500.0,0.00019452,2]
[328996958,1718050246233,-500.0,0.00019452,2]
[328996960,1718050246246,-413.91,0.00019452,2]
[328996962,1718050246257,-500.0,0.00019452,2]
[328996964,1718050246273,-500.0,0.00019452,2]
[328996966,1718050246288,-516.72,0.00019452,2]
[328996968,1718050246300,-500.0,0.00019452,2]
[328996970,1718050246312,-500.0,0.00019452,2]
[328996971,1718050246322,-546.99,0.00019452,2]
[328996973,1718050246333,-1112.06,0.00019452,2]
[328996974,1718050246344,-1687.95,0.00019452,2]
[328996976,1718050246356,-420.18544994,0.00019452,2]
[328996978,1718050246366,-500.0,0.00019452,2]
[328996980,1718050246377,-500.0,0.00019452,2]
[328996982,1718050246390,-500.0,0.00019452,2]
[328996984,1718050246400,-500.0,0.00019452,2]
[328996986,1718050246413,-500.0,0.00019452,2]
[328996988,1718050246423,-500.0,0.00019452,2]
[328996989,1718050246434,-588.47,0.00019452,2]
[328996991,1718050246444,-500.0,0.00019452,2]
[328996993,1718050246459,-5416.1,0.00019452,2]
[328996996,1718050246480,-500.0,0.00019452,2]
[328996998,1718050246495,-989.53534996,0.00019452,2]
[328997015,1718050246716,-762.20465004,0.00019452,2]
[328997017,1718050246726,-633.35,0.00019452,2]
[328997019,1718050246737,-500.0,0.00019452,2]
[328997021,1718050246747,-1080.13,0.00019452,2]
[328997023,1718050246758,-500.0,0.00019452,2]
[328997025,1718050246768,-500.0,0.00019452,2]
[328997027,1718050246778,-278.7044711,0.00019452,2]
[328997029,1718050246789,-987.31,0.00019452,2]
[328997031,1718050246799,-500.0,0.00019452,2]
[328997033,1718050246811,-500.0,0.00019452,2]
[328997035,1718050246821,-2304.66,0.00019452,2]
[328997037,1718050246831,-500.0,0.00019452,2]
[328997039,1718050246842,-500.0,0.00019452,2]
[328997041,1718050246852,-500.0,0.00019452,2]
[328997043,1718050246862,-571.67,0.00019452,2]
[328997045,1718050246871,-500.0,0.00019452,2]
[328997047,1718050246881,-2114.92,0.00019452,2]
[328997048,1718050246893,-500.0,0.00019452,2]
[328997051,1718050246907,-500.0,0.00019452,2]
[328997053,1718050246917,-500.0,0.00019452,2]
[328997055,1718050246928,-500.0,0.00019452,2]
[328997057,1718050246939,-500.0,0.00019452,2]
[328997059,1718050246949,-441.05064701,0.00019452,2]
[328997061,1718050246960,-500.0,0.00019452,2]
[328997063,1718050246970,-500.0,0.00019452,2]
[328997065,1718050246982,-643.54,0.00019452,2]
[328997067,1718050246992,-627.72,0.00019452,2]
[328997069,1718050247002,-1381.5255175,0.00019726,15]
[328997071,1718050247013,-500.0,0.00019726,2]
[328997073,1718050247024,-500.0,0.00019726,2]
[328997075,1718050247038,-500.0,0.00019726,2]
[328997077,1718050247050,-500.0,0.00019726,2]
[328997079,1718050247060,-500.0,0.00019726,2]
[328997081,1718050247077,-389.96445535,0.00019726,2]
[328997083,1718050247092,-500.0,0.00019726,2]
[328997085,1718050247104,-500.0,0.00019726,2]
[328997087,1718050247117,-500.0,0.00019726,2]
[328997090,1718050247128,-152.00988186,0.00019726,2]
[328997091,1718050247139,-500.0,0.00019726,2]
[328997093,1718050247149,-500.0,0.00019726,2]
[328997095,1718050247163,-500.0,0.00019726,2]
[328997097,1718050247174,-500.0,0.00019726,2]
[328997099,1718050247184,-500.0,0.00019726,2]
[328997100,1718050247194,-500.0,0.00019726,2]
[328997101,1718050247208,-500.0,0.00019726,2]
[328997102,1718050247219,-500.0,0.00019726,2]
[328997103,1718050247231,-500.0,0.00019726,2]
[328997104,1718050247243,-500.0,0.00019726,2]
[328997105,1718050247254,-722.62,0.00019726,2]
[328997106,1718050247265,-500.0,0.00019726,2]
[328997107,1718050247277,-500.0,0.00019726,2]
[328997109,1718050247288,-425.01,0.00019726,2]
[328997111,1718050247300,-1066.35,0.00019726,2]
[328997113,1718050247319,-239.85322593,0.00019726,2]
[328997116,1718050247344,-500.0,0.00019726,2]
[328997118,1718050247355,-350.82834028,0.00019726,2]
[328997120,1718050247372,-509.23165972,0.00019726,2]
[328997122,1718050247391,-709.29,0.00019726,2]
[328997124,1718050247410,-502.6378664,0.00019726,2]
[328997126,1718050247424,-500.0,0.00019726,2]
[328997128,1718050247434,-500.0,0.00019726,2]
[328997130,1718050247448,-500.0,0.00019726,2]
[328997132,1718050247459,-516.72,0.00019726,2]
[328997134,1718050247473,-500.0,0.00019726,2]
[328997136,1718050247490,-500.0,0.00019726,2]
[328997138,1718050247506,-546.99,0.00019726,2]
[328997140,1718050247518,-1112.06,0.00019726,2]
[328997142,1718050247529,-1687.95,0.00019726,2]
[328997144,1718050247541,-500.0,0.00019726,2]
[328997146,1718050247551,-500.0,0.00019726,2]
[328997148,1718050247562,-500.0,0.00019726,2]
[328997150,1718050247573,-500.0,0.00019726,2]
[328997152,1718050247583,-598.34,0.00019726,2]
[328997154,1718050247594,-500.0,0.00019726,2]
[328997156,1718050247604,-5416.1,0.00019726,2]
[328997158,1718050247615,-500.0,0.00019726,2]
[328997160,1718050247626,-1751.74,0.00019726,2]
[328997162,1718050247637,-633.35,0.00019726,2]
[328997164,1718050247647,-500.0,0.00019726,2]
[328997166,1718050247661,-1080.13,0.00019726,2]
[328997168,1718050247671,-500.0,0.00019726,2]
[328997170,1718050247681,-500.0,0.00019726,2]
[328997172,1718050247692,-987.31,0.00019726,2]
[328997174,1718050247702,-500.0,0.00019726,2]
[328997176,1718050247712,-181.03536778,0.00019726,2]
[328997179,1718050247733,-2304.66,0.00019726,2]
[328997181,1718050247743,-500.0,0.00019726,2]
[328997183,1718050247753,-500.0,0.00019726,2]
[328997185,1718050247763,-571.67,0.00019726,2]
[328997187,1718050247773,-500.0,0.00019726,2]
[328997189,1718050247783,-2114.92,0.00019726,2]
[328997191,1718050247792,-500.0,0.00019726,2]
[328997193,1718050247802,-500.0,0.00019726,2]
[328997195,1718050247812,-456.27127201,0.00019726,2]
[328997197,1718050247822,-500.0,0.00019726,2]
[328997199,1718050247832,-500.0,0.00019726,2]
[328997201,1718050247842,-500.0,0.00019726,2]
[328997203,1718050247851,-627.72,0.00019726,2]
[328997205,1718050247861,-1390.15227112,0.000199,2]
[328997207,1718050247871,-420.0,0.00019974,2]
[328997209,1718050247881,-1115.98840214,0.0002,2]
[328997211,1718050247893,-500.0,0.0002,2]
[328997213,1718050247905,-500.0,0.0002,2]
[328997214,1718050247915,-500.0,0.0002,2]
[328997216,1718050247925,-500.0,0.0002,2]
[328997218,1718050247936,-500.0,0.0002,2]
[328997220,1718050247946,-500.0,0.0002,2]
[328997222,1718050247956,-500.0,0.0002,2]
[328997224,1718050247966,-262.55541578,0.0002,2]
[328997226,1718050247978,-631.37772711,0.0002,2]
[328997229,1718050247992,-500.0,0.0002,2]
[328997231,1718050248004,-500.0,0.0002,2]
[328997233,1718050248017,-500.0,0.0002,2]
[328997235,1718050248032,-500.0,0.0002,2]
[328997237,1718050248048,-286.96061929,0.0002,2]
[328997239,1718050248058,-500.0,0.0002,2]
[328997240,1718050248068,-332.57983073,0.0002,2]
[328997243,1718050248082,-167.42016927,0.0002,2]
[328997245,1718050248092,-500.0,0.0002,2]
[328997247,1718050248102,-500.0,0.0002,2]
[328997249,1718050248112,-722.62,0.0002,2]
[328997251,1718050248122,-201.01,0.0002,2]
[328997253,1718050248132,-424.65098868,0.0002,2]
[328999431,1718050340952,155.01550155,9.999e-05,2]
[328999432,1718050369350,524.421315,9.999e-05,2]
[328999434,1718050389529,155.01550155,9.999e-05,2]
[328999435,1718050409518,155.01550155,9.999e-05,2]
[328999437,1718050436384,421.85812378,9.999e-05,2]
[328999439,1718050640909,159.06387123,9.999e-05,2]
[328999440,1718050805107,5000.0,0.00013716,2]
[328999441,1718050891602,282.49542241,9.999e-05,2]
[328999547,1718051443335,-185.005166,0.00017268,2]
[328999551,1718051443345,-2745.5276728,0.00017268,2]
[328999555,1718051443356,-3120.09651569,0.00017414,4]
[328999560,1718051443368,-2113.8300801,0.00017965,2]
[328999564,1718051443379,-164.63552504,0.00017976,2]
[328999567,1718051443390,-300.0,0.00017977,2]
[328999571,1718051443400,-300.0,0.00017977,2]
[328999574,1718051443411,-24900.0,0.00017978,2]
[328999577,1718051443421,-780.76091422,0.000189,2]
[328999580,1718051443431,-3675.09720403,0.00019,5]
[328999583,1718051443442,-153.0,0.00019,2]
[328999586,1718051443455,-584.9466086,0.00019,2]
[328999590,1718051443469,-153.0,0.00019,2]
[328999593,1718051443479,-153.0,0.00019,2]
[328999596,1718051443490,-205.3053491,0.00019,2]
[328999599,1718051443500,-153.0,0.00019,2]
[328999602,1718051443511,-205.3053491,0.00019,2]
[328999605,1718051443523,-153.0,0.00019,2]
[328999608,1718051443533,-153.0,0.00019,2]
[328999612,1718051443551,-153.0,0.00019,2]
[328999616,1718051443566,-153.0,0.00019,2]
[328999620,1718051443578,-153.0,0.00019,2]
[328999624,1718051443591,-205.3053491,0.00019,2]
[328999628,1718051443602,-664.37269236,0.00019073,2]
[328999631,1718051443612,-664.37269234,0.00019074,2]
[328999635,1718051443627,-664.37269234,0.00019076,2]
[328999637,1718051443637,-664.37269234,0.00019077,2]
[328999639,1718051443647,-664.37269234,0.00019078,2]
[328999641,1718051443657,-153.0,0.00019078,2]
[328999643,1718051443668,-155.68377304,0.00019171,2]
[328999645,1718051443679,-956.88670955,0.00019171,2]
[328999647,1718051443689,-196.74458259,0.00019171,2]
[328999649,1718051443700,-927.24590126,0.00019171,2]
[328999651,1718051443711,-281.49904927,0.00019171,2]